Cogmind - Beta 17 @@@ ROGUE MODE // 2026.07.11 @ 13:22:54 Player: Cracklepappy Result: Destroyed by U4-FGV(R) with Subdweller Machine Gun Performance ------------- Evolutions (0) 0 Regions Visited (2) 400 Robots Destroyed (36) 180 Value Destroyed (825) 825 Prototype IDs (1) 20 Alien Tech Used (0) 0 Bonus (5600) 5600 TOTAL SCORE: 7025 Bonus ------- Prayed to X0-1V1 5000 Major X0-1V1 Interference 600 Cogmind --------- Core Integrity 0/150 Matter 259/500 Energy 112/125 System Corruption 1% Temperature Cool (0) Movement Treading (340) Ox2 Location -10/Subcaves Parts ------- > --- POWER (1) -------- Light Ion Engine > --- PROPULSION (2) --- Light Treads Spiked Treads > --- UTILITY (2) ------ Huge Storage Unit X0-1V1's Piety Tracker > --- WEAPON (2) ------- Subdweller Beam Cannon Battle Cannon > --- INVENTORY (25) --- Light Ion Engine Light Treads Light Treads Light Treads Wheel Wheel Compact Wheel Flight Unit Flight Unit Large Storage Unit Medium Matter Pod (100) Weight Redist. System Seismic Detector Subdweller Laser Assault Rifle Assault Rifle Light Assault Rifle Light Assault Rifle Light Assault Rifle Battle Rifle Battle Cannon Battle Cannon Grenade Launcher Grenade Launcher Ripper Peak State ------------ > --- POWER ------------ Light Ion Engine > --- PROPULSION ------- Light Treads Spiked Treads > --- UTILITY ---------- Huge Storage Unit X0-1V1's Piety Tracker > --- WEAPON ----------- Subdweller Beam Cannon Battle Cannon > --- INVENTORY -------- Light Ion Engine Light Treads Light Treads Light Treads Wheel Wheel Compact Wheel Flight Unit Flight Unit Large Storage Unit Medium Matter Pod Weight Redist. System Seismic Detector Assault Rifle Assault Rifle Light Assault Rifle Light Assault Rifle Light Assault Rifle Battle Rifle Battle Cannon Battle Cannon Grenade Launcher Grenade Launcher Ripper [Rating: 25] Favorites ----------- Power Light Ion Engine Engine Light Ion Engine Propulsion Light Treads Treads Light Treads Flight Unit Flight Unit Utility Huge Storage Unit Device X0-1V1's Piety Tracker Storage Huge Storage Unit Weapon Assault Rifle Energy Cannon Subdweller Beam Cannon Ballistic Gun Assault Rifle Ballistic Cannon Battle Cannon Launcher Grenade Launcher Special Weapon Mining Laser Build | -11 -10 -10 ------- Run | Yrd Mat Sub Slots Evolved . | . . . Power . | . . . Propulsion . | . . . Utility . | . . . Weapon . | . . . Parts Attached 22 | 6 10 6 Power 1 | . 1 . Engine 1 | . 1 . Core . | . . . Reactor . | . . . Propulsion 8 | 2 4 2 Treads 7 | 2 3 2 Leg . | . . . Wheel . | . . . Hover . | . . . Flight 1 | . 1 . Utility 6 | 2 3 1 Device 4 | 2 1 1 Storage 2 | . 2 . Processor . | . . . Hackware . | . . . Protection . | . . . Artifact . | . . . Weapon 7 | 2 2 3 Energy Gun . | . . . Energy Cannon 1 | . . 1 Ballistic Gun 3 | 2 1 . Ballistic Cannon 1 | . . 1 Launcher 1 | . . 1 Special Weapon 1 | . 1 . Impact Weapon . | . . . Slashing Weapon . | . . . Piercing Weapon . | . . . Special Melee Weapon . | . . . Unidentified Prototypes 1 | . 1 . Parts Lost 3 | . . 3 Power . | . . . Propulsion 1 | . . 1 Utility 1 | . . 1 Weapon 1 | . . 1 Highest Loss Streak 2 | . . 2 To Critical Strikes . | . . . Average Backups 20 | 2 16 24 Power . | . . 1 Propulsion 6 | . 5 8 Utility 4 | . 4 4 Weapon 8 | 2 5 11 Tool/Special . | . . . Unused Backups 30 | . 6 24 Power 1 | . . 1 Propulsion 7 | . . 7 Utility 6 | . 2 4 Weapon 16 | . 4 12 Tool/Special . | . . . Average Slot Usage (%) 97 | . 95 99 Engine 12 | . 11 14 Treads 27 | . 27 28 Device 15 | . 16 13 Storage 12 | . 11 14 Energy Cannon 6 | . . 12 Ballistic Gun 16 | . 25 8 Ballistic Cannon 3 | . . 7 Peak Build Rating 25 | 7 21 25 Average Rating 16 | 3 8 23 On Entrance 9 | . 7 21 Avg Prop Armor Cover (%) 29 | 33 28 . Naked Turns . | . . . Heaviest Build 95 | 3 88 95 Greatest Support 40 | 3 40 40 Greatest Overweight (x) 2 | . 2 2 Average Overweight (x) 1 | . 1 2 Largest Inventory Capacity 25 | 5 25 25 Average Capacity 22 | 5 20 25 Most Carried 25 | 5 25 25 Average Carried 20 | 3 16 24 Final Capacity 25 | 5 25 25 Final Carried 25 | 5 25 25 Class Distribution -------------------- 100% | Mutant Dominant Class ---------------- Mutant | -10/Materials Mutant | -10/Subcaves Resources | -11 -10 -10 ----------- Run | Yrd Mat Sub Matter Collected 1267 | 272 436 559 Remotely . | . . . Salvage Created 1254 | 90 667 497 Parts 80 | 7 45 28 Haulers Intercepted 2 | . 2 . Recyclers Shooed 2 | 1 1 . Parts Field Recycled . | . . . Retrieved Matter . | . . . Parts Self-Destructed 12 | . . 12 Prevented . | . . . Parts Restored . | . . . Kills | -11 -10 -10 ------- Run | Yrd Mat Sub Combat Hostiles Destroyed 24 | . 8 16 Guns 11 | . 8 3 Cannons 7 | . . 7 AOE 4 | . . 4 Classes Destroyed 8 | 2 5 1 Worker 2 | . 2 . Tunneler 3 | 1 2 . Hauler 2 | . 2 . Recycler 3 | 1 2 . Watcher 2 | . 2 . Swarmer 7 | . 3 4 Grunt 9 | . 5 4 Subdweller 8 | . . 8 Best Kill Streak 4 | 2 4 4 Combat Bots Only 4 | . 3 4 Max Kills in Single Turn 3 | 1 2 3 Gunslinging 1 | . 1 . Exploded 3 | . . 3 Melee . | . . . Uniques/NPCs Destroyed . | . . . Combat | -11 -10 -10 -------- Run | Yrd Mat Sub Hostile Shots Fired 103 | . 36 67 Missed 32 | . 11 21 Hits 71 | . 25 46 Projectile 71 | . 25 46 Critical Strikes 1 | . 1 . Damage Taken 1145 | . 304 841 Core 207 | . 43 164 Absorbed by Shields . | . . . Core Remaining (%) 100 | 100 . . Volleys Fired 123 | 12 46 65 Largest 2 | 1 2 2 Hottest 113 | 20 100 113 Shots Fired 209 | 12 83 114 Gun 129 | 12 82 35 Cannon 77 | . . 77 Launcher 2 | . . 2 Special 1 | . 1 . Kinetic 162 | 12 82 68 Thermal 45 | . 1 44 Explosive 2 | . . 2 Electromagnetic . | . . . Robot Hit Streak 25 | 3 12 25 Robot Miss Streak 5 | 1 5 3 Penetration Max . | . . . Secondary Targets 1 | . 1 . Max Gunslinging Chain 1 | . 1 . Shots Hit Robots 150 | 9 56 85 Core Hits 59 | 5 29 25 Critical Kills 2 | . . 2 Critical Parts Destroyed . | . . . Critical Strikes 2 | . . 2 Meltdown 2 | . . 2 Melee Attacks . | . . . Impact . | . . . Slashing . | . . . Piercing . | . . . Sneak Attacks . | . . . Combat Hostiles . | . . . Follow-up Attacks . | . . . Damage Inflicted 2873 | 76 724 2073 Guns 1090 | 76 723 291 Cannons 1546 | . . 1546 Explosions 236 | . . 236 Melee . | . . . Ramming 1 | . 1 . Kinetic 1670 | 76 723 871 Thermal 966 | . . 966 Explosive 236 | . . 236 Electromagnetic . | . . . Impact . | . . . Slashing . | . . . Piercing . | . . . Highest Corruption 1 | . . 1 Average Corruption 1 | . . 1 Corruption Purged . | . . . Corruption Blocked . | . . . Effects 8 | . . 8 Message Errors 2 | . . 2 Matter Fused 1 | . . 1 Heat Flow Errors 1 | . . 1 Data Loss (minor) 1 | . . 1 Data Loss (major) 2 | . . 2 Misfires 1 | . . 1 Overload Shots . | . . . Overflow Damage 40 | . . 40 Projectiles . | . . . Explosions 40 | . . 40 Melee . | . . . Knockbacks 4 | . . 4 Impact . | . . . Kinetic 4 | . . 4 Secondary . | . . . Self-Inflicted Damage 16 | . . 16 Shots 1 | . . 1 Rammed 2 | . 2 . Targets Rammed 2 | . 2 . Kicked . | . . . Crushed . | . . . Highest Temperature 173 | . 20 173 Average Temperature 33 | . 10 45 Received Heat Transfer 288 | . 165 123 Siege Activations . | . . . Martial Activations . | . . . Shielding Activations . | . . . Robots Disrupted . | . . . Combat Hostiles . | . . . Robots Corrupted . | . . . Combat Hostiles . | . . . Parts Fried . | . . . Impact Corruptions . | . . . Robots Melted 2 | . . 2 Combat Hostiles 2 | . . 2 Parts Melted 3 | . . 3 Heat Transferred 1295 | . . 1295 Parts Sabotaged . | . . . Parts Stolen . | . . . Parts Stripped . | . . . Power Chain Reactions . | . . . Alert | -11 -10 -10 ------- Run | Yrd Mat Sub Maximum Alert Level . | . . . Low Security (%) 100 | 100 100 . Level 1 . | . . . Level 2 . | . . . Level 3 . | . . . Level 4 . | . . . Level 5 . | . . . High Security . | . . . Max Security . | . . . Peak Influence 74 | 10 74 . Initial . | . . . Average 8 | . 8 . Influence Increases 477 | 10 287 180 Destroy 0b10 Robot/C 320 | . 160 160 Destroy 0b10 Robot/NC 60 | 10 50 . Destroy Leader 68 | . 48 20 Successful Hack 12 | . 12 . Destroy Structure 2 | . 2 . Lose Combat Pursuer 15 | . 15 . Influence Decreases 415 | 10 287 118 Time Decay 405 | 10 287 108 Lost Part 10 | . . 10 Squads Dispatched 1 | . 1 . Investigation . | . . . Extermination . | . . . Reinforcement 1 | . 1 . Assault . | . . . Garrison . | . . . Intercept . | . . . Searches Triggered . | . . . Construction Impeded . | . . . Haulers Reinforced . | . . . Active Scanning Responses . | . . . Cargo Convoy Interrupts . | . . . Stealth | -11 -10 -10 --------- Run | Yrd Mat Sub Distress Signals . | . . . Communications Jammed . | . . . Distress Signals . | . . . Times Spotted 41 | . 24 17 Peak Tracking Total 4 | . 4 4 Tactical Retreats 1 | . 1 . Traps | -11 -10 -10 ------- Run | Yrd Mat Sub Traps Triggered . | . . . Indirectly . | . . . Trap Hack Attempts . | . . . Triggered . | . . . Disarmed 4 | . 4 . Reprogrammed . | . . . Reused . | . . . Traps Extracted . | . . . Installed . | . . . Triggered . | . . . Machines | -11 -10 -10 ---------- Run | Yrd Mat Sub Machines Disabled . | . . . Max in Single Turn . | . . . Machines Repaired . | . . . Machines Dismantled . | . . . Machines Sabotaged . | . . . Overloaded Fab Kills . | . . . Hacking | -11 -10 -10 --------- Run | Yrd Mat Sub Machines Accessed 7 | . 7 . Terminals 7 | . 7 . Fabricators . | . . . Repair Stations . | . . . Recycling Units . | . . . Scanalyzers . | . . . Garrison Access . | . . . Total Hacks 17 | . 17 . Successful 7 | . 7 . Failed 10 | . 10 . Catastrophic 1 | . 1 . Database Lockouts . | . . . Manual 11 | . 11 . Terminals 17 | . 17 . Fabricators . | . . . Repair Stations . | . . . Recycling Units . | . . . Scanalyzers . | . . . Garrison Access . | . . . Terminal Hacks 2 | . 2 . Locate Traps 1 | . 1 . Disarm Traps 1 | . 1 . Fabricator Hacks . | . . . Repair Station Hacks . | . . . Recycling Unit Hacks . | . . . Scanalyzer . | . . . Garrison Access Hacks . | . . . Unauthorized Hacks 5 | . 5 . Terminals 5 | . 5 . Skim 5 | . 5 . Fabricators . | . . . Repair Stations . | . . . Recycling Units . | . . . Scanalyzers . | . . . Garrison Access . | . . . Data Cores Recovered . | . . . Used . | . . . Hacking Detections 7 | . 7 . Full Trace Events . | . . . Feedback Events . | . . . Feedback Blocked . | . . . Robot Schematics Acquired . | . . . Robots Built . | . . . Authchips . | . . . Time . | . . . Total Robot Build Rating . | . . . Part Schematics Acquired . | . . . Parts Built . | . . . Authchips . | . . . Time . | . . . Total Part Build Rating . | . . . Part Studies Acquired . | . . . Parts Repaired . | . . . Time . | . . . Parts Recycled . | . . . Recycled Matter . | . . . Retrieved Matter . | . . . Retrieved Components . | . . . Parts Scanalyzed . | . . . Part Schematics Acquired . | . . . Parts Damaged . | . . . Bothacking | -11 -10 -10 ------------ Run | Yrd Mat Sub Used RIF Installer . | . . . Robots Hacked . | . . . Non-combat . | . . . Combat . | . . . Robot Hacks Applied . | . . . Relay Couplers Released . | . . . Fabnet Peak Effective % . | . . . Robots Rewired . | . . . Allies Hacked . | . . . Hacks Repelled . | . . . Allies | -11 -10 -10 -------- Run | Yrd Mat Sub Total Allies . | . . . Largest Group . | . . . Highest-Rated Group . | . . . Highest-Rated Ally . | . . . Total Orders . | . . . Ally Attacks . | . . . Total Damage . | . . . Kills . | . . . Allies Corrupted . | . . . Allies Melted . | . . . X0-1V1 Amusement Gains 28 | . 18 10 Good Acts 1 | . . 1 Bad Acts 6 | . . 6 Intel | -11 -10 -10 ------- Run | Yrd Mat Sub Active Infowar (turns) 2596 | 22 2574 . Terrain 459 | 15 444 . Seismic 2596 | 22 2574 . Robot Analysis Total . | . . . Derelict Logs Recovered . | . . . Drone Launches . | . . . Drone Recoveries . | . . . Exploration | -11 -10 -10 ------------- Run | Yrd Mat Sub Turns Passed 5696 | 83 2582 3031 Spaces Moved 1921 | 91 986 844 Core 447 | 91 356 . Treads 1470 | . 626 844 Legs . | . . . Wheels . | . . . Hover . | . . . Flight 4 | . 4 . Fastest Speed 40 | 50 40 320 Average Speed 266 | 50 226 335 Slowest Speed 340 | 50 320 340 Overloaded Moves . | . . . Propulsion Burnouts . | . . . Robots Hopped . | . . . Potential Cave-ins . | . . . Cave-ins Triggered . | . . . Exploration Rate (%) 48 | 4 98 44 Regions Visited 2 Branch Regions 1 Pre-discovered Areas 1 | . . 1 Known Exits Taken 1 | . 1 . Unknown Exits Taken 1 | 1 . . Scrap Searched 5 | . . 5 Spaces Dug 2 | . 1 1 Terrain Destroyed 20 | . 1 19 Melee . | . . . Projectile 9 | . 1 8 AOE 11 | . . 11 Terrain Rammed . | . . . Walls Destroyed . | . . . Machines Disabled . | . . . Actions | -11 -10 -10 --------- Run | Yrd Mat Sub Total 2303 | 115 1254 934 Wait 160 | 1 153 6 Move 1919 | 90 985 844 Hop . | . . . Pick Up 43 | 6 31 6 Fast Attach 6 | 4 1 1 Attach 8 | 1 5 2 Detach 3 | . 3 . Swap 19 | 1 14 4 Drop 19 | . 14 5 Fire 123 | 12 46 65 Melee . | . . . Ram . | . . . Kick . | . . . Crush 2 | . 2 . Escape Stasis . | . . . Rewire 1 | . . 1 Trap . | . . . Miscellaneous . | . . . Route ------- -11/Scrapyard -10/Materials (discovered 6 exits: [*Mat x3] / *Min x2 / *Sub) -10/Subcaves (discovered 3 exits: [*Mat x2] / Rec) History --------- Turn | Location | Event 9 | -11/Scrapyard | Discovered new exit (range 16) 84 | -11/Scrapyard | Entered Materials 267 | -10/Materials | Discovered new exit (range 15) 314 | -10/Materials | Build established: Mutant 329 | -10/Materials | Discovered new exit (range 10) 429 | -10/Materials | Discovered new exit (range 9) 651 | -10/Materials | Identified exit to Mines 651 | -10/Materials | Identified exit to Subcaves 721 | -10/Materials | Learned 4 Recycling zone layouts 779 | -10/Materials | Learned Storage machine intel 806 | -10/Materials | Discovered new exit (range 11) 864 | -10/Materials | Loaded intel: 12 trap records 892 | -10/Materials | Loaded intel: 1 repair station location 978 | -10/Materials | Learned Materials trap positions 1027 | -10/Materials | Learned location of 2 exits from Mines 1084 | -10/Materials | Learned 2 Mines zone layouts 2658 | -10/Materials | Prayed at D.C.S.S. Altar Unit 2666 | -10/Materials | Entered Subcaves 2667 | -10/Subcaves | Approached by a straggling Scientist 2667 | -10/Subcaves | Identified exit to Recycling 2714 | -10/Subcaves | Matter capacity permanently improved by X0-1V1 (+200; -100 max core) 2838 | -10/Subcaves | Learned location of Zion (-6) 2838 | -10/Subcaves | Met a Zionite searching for "candidates" 3383 | -10/Subcaves | A swath of the cavern ceiling suddenly collapsed 3882 | -10/Subcaves | Discovered new exit (range 8) 4071 | -10/Subcaves | Discovered new exit (range 15) 4157 | -10/Subcaves | Core integrity fell below 50% 5301 | -10/Subcaves | Shifting Twisted Machinery released Mak. Spear 5485 | -10/Subcaves | Shifting Twisted Machinery released Sub. Machine Gun 5519 | -10/Subcaves | Shifting Twisted Machinery released Sub. Machine Gun 5521 | -10/Subcaves | X0-1V1 sent hostile S-10 Pest (x4) 5676 | -10/Subcaves | Core integrity fell below 20% 5697 | -10/Subcaves | Destroyed by U4-FGV(R) with Subdweller Machine Gun Last Messages --------------- 05528_ Destroyed X0-1V1's Piety Tracker. 05530_ Subatomizers dissect the Lgt. Ion Engine. 05532_ The unstable cave ceiling collapses. 05533_ Lgt. Ion Engine fries itself beyond repair. 05533_ Lgt. Assault Rifle fries itself beyond repair. 05534_ Flight Unit fries itself beyond repair. 05541_ Lgt. Assault Rifle fries itself beyond repair. X0-1V1's Piety Tracker suddenly appears amidst shimmering waves of color. 05565_ Acquired X0-1V1's Piety Tracker. 05612_ %ACK|W1R1 FWFDJTMHQ5AKUUD,Y CVVGAOQ 05624_ The unstable cave ceiling collapses. 05635_ Acquired 6 matter. 05675_ T4-VNN(R) knocked back. 05681_ X0-1V1: "I know that drunk sailor look when I see it." 05681_ T4-VNN(R) knocked back. 05687_ T4-VNN(R) destroyed. 05694_ Movement behavior is fully back under control. 05696_ U4-FGV(R) affixes Scrap Shield Fragment to Scrap Shield. 05696_ U4-FGV(R) knocked back. 05697_ X0-1V1 howls with laughter! Map ----- +----------------------------------------------------+ | ????????# ##?????????????????????# ## " | | ????????# #######???????????????# "# | | ????????# ## # #######?????????## " | | ?????????# #??????????### | | ?????????# ## # # # ##????????????## | | ?????????# ## ####### ##?????????????#### | | ?????????# ##????## #????????????????## ### | | ?????????# ###??## #?????????????????##?## | | ?????????## ## #??# #????????????????????# | | ??????????##### ##### #????????????????????# | | ????????###??## ## ##???????????????????## | | ????????# ### ## ##????????????????#### | | ????????# #### # ##??????????????## | | ????????## ##??# ##????????????## | | ?????????## ###???# #####????????# ### | | ???????##########?# ## ##???????# #?? | | ###???## ### # #### ### ###?????# #?? | | ##### ## ##### ### ### ####### ##? | | #?# % # #?# ### #? | | ### #?# ### #? | | # ;### #? | | ## ### ### ##### # | | #######""" " ## ##???# ## # | | #### #????""" """ # #???# #?# # | | ???### ["#??? ""##" #??# #?? | | ?????#"""#??## ### @ ##?## #? | | ?????##"##???###["##?#"/#; #??## | | ??????###??????####""""" % %% #?##### | | ???????????????????"""" % % ???#### | | ???????????????????""" %"##;R #????## | | ???????????????????"""""" ?#### #????# | | ???????????????????"""" ?????### ???? | | ???????????????????"""# ?????????# ??? ## | | ??????????????????????## ??????????###??? #?# | | ???????????????????????#"? ????????????????# ???? | | ????????????????????????"??????????????????? ????? | | ?????????????????????????????????????????????????? | | ?????????????????????????????????????????????????? | | ?????????????????????????????????????????????????? | | ?????????????????????????????????????????????????? | | ?????????????????????????????????????????????????? | | ?????????????????????????????????????????????????? | | ?????????????????????????????????????????????????? | | ?????????????????????????????????????????????????? | | ?????????????????????????????????????????????????? | | ?????????????????????????????????????????????????? | | ?????????????????????????????????????????????????? | | ?????????????????????????????????????????????????? | | ?????????????????????????????????????????????????? | | ?????????????????????????????????????????????????? | +----------------------------------------------------+ Best States ------------- Heat Dissipation 25 Energy Generation 10 Energy Capacity 125 Matter Stores 500 Matter Capacity 500 Sight Range 16 Terrain Scan Range 16 Terrain Scan Density 10 Evasion (%) 62 Recoil Reduction 2 Item Schematics ----------------- None Robot Schematics ------------------ None Fabricated ------------ Nothing Repaired ---------- Nothing Studied --------- None Alien Tech Used ----------------- None Achievements -------------- None Challenges ------------ None Game ------ Seed LatentAdvancedFlakker Manual? 0 Play Time 00:18:14 Cumulative 1528.8 hours Start 2026.07.11 @ 13:05:07 End 2026.07.11 @ 13:22:54 Sessions 1 Manual Loads 0 Difficulty Rogue Special Mode None Game No. 675 Rogue 675 Adventurer 0 Explorer 0 Win Type - Total 32 Types 15/7/3/0/1/1/2/2/0/1 Lore% 93 Gallery% 87 Achievement% 76 Wizard Run 0 Options --------- Layout 0 ASCII 0 Keyboard 0 Movement Numpad Keybinds 0 Fullscreen 2 Font 24/Smallcaps Map View 76x50 Zoom Use 0% Tactical HUD 1 Map Filters NONE Filters NONE Steam 1 RUN: 8b956a99-f7f5-4db5-9287-a00f3a799805